bitfinex/quotes_SOLUSD_20251116
["timestamp","ask_amount","ask_price","bid_price","bid_amount"]
[1763291322174,18.76882769,142.92,142.91,1e-08]
[1763291322384,21.57240224,142.92,142.91,1e-08]
[1763291330089,26.27693996,142.92,142.91,1e-08]
[1763291337903,48.92813996,142.92,142.91,1e-08]
[1763291340413,40.66813996,142.92,142.91,1e-08]
[1763291340709,48.94813996,142.92,142.91,1e-08]
[1763291340915,39.94813996,142.92,142.91,1e-08]
[1763291341212,48.94618466,142.92,142.91,1e-08]
[1763291343109,48.94624027,142.92,142.91,1e-08]
[1763291347588,26.29504027,142.92,142.91,1e-08]
[1763291348215,48.94624027,142.92,142.91,1e-08]
[1763291348521,26.29504027,142.92,142.91,1e-08]
[1763291355027,48.94624027,142.92,142.91,1e-08]
[1763291355325,34.91342459,142.92,142.91,1e-08]
[1763291356334,113.78882768,142.89,142.88,0.1]
[1763291356502,31.87908725,142.89,142.88,0.1]
[1763291356828,32.58908725,142.89,142.88,0.1]
[1763291357033,35.39403798,142.89,142.88,0.1]
[1763291357916,40.09090756,142.89,142.88,0.1]
[1763291359221,35.39403798,142.89,142.88,0.1]
[1763291359822,26.40403798,142.89,142.88,0.78]
[1763291360134,57.33523798,142.89,142.88,0.78]
[1763291362304,47.54641029,142.89,142.88,0.78]
[1763291362633,22.09025956,142.89,142.88,0.78]
[1763291364442,54.53028725,142.89,142.88,0.78]
[1763291364732,57.33445143,142.89,142.88,0.78]
[1763291364930,54.53028725,142.89,142.88,0.78]
[1763291365800,57.33445143,142.89,142.88,0.78]
[1763291366421,47.54562374,142.89,142.88,0.78]
[1763291366729,44.74145956,142.89,142.88,0.78]
[1763291369030,12.00025956,142.89,142.88,0.78]
[1763291370233,20.28025956,142.89,142.88,0.78]
[1763291372128,12.00025956,142.89,142.88,0.78]
[1763291374543,20.28025956,142.89,142.88,0.1]
[1763291377654,134.97908725,142.89,142.88,0.1]
[1763291379840,134.26908725,142.89,142.88,0.1]
[1763291380222,137.07325143,142.89,142.88,0.1]
[1763291380435,134.97908725,142.89,142.88,0.1]
[1763291380743,137.78325143,142.89,142.88,0.1]
[1763291382923,134.97908725,142.89,142.88,0.1]
[1763291384440,137.78325143,142.89,142.88,0.1]
[1763291384829,134.97908725,142.89,142.88,0.1]
[1763291385529,137.78325143,142.89,142.88,0.1]
[1763291386030,134.97908725,142.89,142.88,0.1]
[1763291386337,127.28442374,142.89,142.88,0.1]
[1763291386537,124.48025956,142.89,142.88,0.1]
[1763291386740,116.20025956,142.89,142.88,0.1]
[1763291387042,124.48025956,142.89,142.88,0.1]
[1763291387951,20.28025956,142.89,142.88,0.1]
[1763291392416,30.77908725,142.89,142.88,0.1]
[1763291392619,33.58344803,142.89,142.88,0.1]
[1763291393449,38.278699,142.89,142.87,0.1]
[1763291393654,5.40525097,142.88,142.87,0.1]
[1763291394028,28.05645097,142.88,142.87,0.1]
[1763291394338,23.3612,142.88,142.87,0.1]
[1763291394838,8.28,142.88,142.87,0.1]
[1763291395028,8.99,142.88,142.87,0.1]
[1763291396341,9.78882769,142.87,142.85,0.1]
[1763291396662,8.28,142.86,142.85,0.1]
[1763291396832,46.12321542,142.86,142.85,0.1]
[1763291397031,41.43002769,142.86,142.85,0.1]
[1763291398151,30.9312,142.86,142.85,0.1]
[1763291398525,33.7357574,142.86,142.85,0.1]
[1763291399348,25.4557574,142.86,142.85,0.1]
[1763291399554,33.7357574,142.86,142.85,0.1]
[1763291399730,34.4457574,142.86,142.85,0.1]
[1763291400345,39.13433321,142.86,142.85,0.1]
[1763291400548,34.4457574,142.86,142.85,0.1]
[1763291400744,25.4557574,142.86,142.85,0.1]
[1763291400957,8.28,142.86,142.85,0.1]
[1763291401156,29.31418054,142.86,142.85,0.31]
[1763291401535,8.28,142.86,142.85,0.31]
[1763291402155,8.28,142.86,142.85,0.1]
[1763291405253,31.6412,142.86,142.85,0.1]
[1763291405555,46.11819592,142.86,142.85,0.1]
[1763291405966,22.6512,142.83,142.77,0.1]
[1763291406269,8.3,142.82,142.77,0.1]
[1763291406442,9.01,142.82,142.77,0.41]
[1763291407035,8.3,142.82,142.78,0.31]
[1763291407236,0.71,142.81,142.77,0.41]
[1763291407440,8.3,142.8,142.77,0.41]
[1763291407665,8.3,142.8,142.78,0.31]
[1763291411468,104.2,142.85,142.78,0.31]
[1763291411776,8.3,142.84,142.78,0.31]
[1763291412267,9.01,142.84,142.78,0.31]
[1763291412457,8.3,142.84,142.78,0.31]
[1763291412655,0.71,142.83,142.78,0.31]
[1763291413566,22.6512,142.78,142.77,0.1]
[1763291413767,40.74002769,142.78,142.77,0.1]
[1763291413975,41.42002769,142.78,142.77,0.1]
[1763291415949,44.22635596,142.78,142.77,0.1]
[1763291416149,35.92635596,142.78,142.77,0.1]
[1763291416345,9.78882769,142.77,142.76,0.1]
[1763291416554,10.49882769,142.77,142.76,0.1]
[1763291417066,10.49882769,142.77,142.73,0.1]
[1763291417271,9.01,142.76,142.73,0.1]
[1763291417457,9.78882769,142.74,142.73,0.1]
[1763291417664,18.08882769,142.74,142.73,0.1]
[1763291417865,18.79882769,142.74,142.73,0.1]
[1763291418044,21.60594372,142.74,142.73,0.1]
[1763291418244,11.10711603,142.74,142.73,0.1]
[1763291418451,8.3,142.74,142.73,0.1]
[1763291418649,2.80672209,142.76,142.73,0.61]
[1763291419165,8.3,142.77,142.73,0.61]
[1763291420047,9.01,142.77,142.73,0.61]
[1763291420342,8.3,142.77,142.73,0.1]
[1763291420658,0.71,142.76,142.73,0.1]
[1763291422245,10.49882769,142.76,142.73,0.1]
[1763291422750,8.3,142.75,142.73,0.1]
[1763291423065,9.01,142.75,142.73,0.1]
[1763291425266,0.71,142.74,142.73,0.1]
[1763291426151,23.3612,142.74,142.73,0.1]
[1763291426353,33.15002769,142.74,142.73,0.1]
[1763291426675,35.95714372,142.74,142.73,0.1]
[1763291429394,137.35002769,142.74,142.73,0.1]
[1763291429802,140.15714372,142.74,142.73,0.1]
[1763291430099,137.35002769,142.74,142.73,0.1]
[1763291430381,140.15714372,142.74,142.73,0.1]
[1763291431186,35.95714372,142.74,142.73,0.1]
[1763291431386,32.44002769,142.71,142.7,0.1]
[1763291431685,40.74002769,142.71,142.7,0.1]
[1763291431873,41.45002769,142.71,142.7,0.1]
[1763291432083,44.25793194,142.71,142.7,0.1]
[1763291432672,9.78882769,142.7,142.68,0.2475813]
[1763291432974,41.45002769,142.69,142.68,0.2475813]
[1763291433181,18.79882769,142.69,142.68,0.2475813]
[1763291433397,9.01,142.69,142.68,0.2475813]
[1763291435202,8.3,142.69,142.68,0.2475813]
[1763291435763,22.6512,142.7,142.68,0.2475813]
[1763291436060,8.32,142.69,142.68,0.2475813]
[1763291436480,21.05632567,142.72,142.68,0.9275813]
[1763291436678,8.32,142.71,142.68,0.9275813]
[1763291437065,8.32,142.71,142.69,0.68]
[1763291440002,0.71,142.7,142.68,0.2475813]
[1763291440163,8.32,142.69,142.68,0.2475813]
[1763291440565,9.03,142.69,142.68,0.2475813]
[1763291441264,18.81882769,142.69,142.68,0.2475813]
[1763291442677,22.6512,142.69,142.68,0.2475813]
[1763291442885,30.9712,142.69,142.68,0.2475813]
[1763291445185,31.6212,142.69,142.68,0.2475813]
[1763291445800,22.6512,142.66,142.62,0.72]
[1763291445970,8.32,142.65,142.59,0.72]
[1763291446701,11.98063603,142.65,142.59,0.72]
[1763291447271,10.43882769,142.64,142.58,0.1]
[1763291447467,8.97,142.63,142.58,0.82]
[1763291447777,0.65,142.62,142.58,0.1]
[1763291447976,8.32,142.61,142.58,0.82]
[1763291448183,8.32,142.61,142.58,0.1]
[1763291448373,8.97,142.61,142.58,0.1]
[1763291449274,0.65,142.6,142.58,0.1]
[1763291449604,8.32,142.59,142.58,0.1]
[1763291449811,0.65,142.63,142.58,0.1]
[1763291449994,22.6512,142.59,142.58,0.1]
[1763291450194,30.9712,142.59,142.58,0.1]
[1763291451699,33.78107671,142.59,142.58,0.1]
[1763291451893,2.80987671,142.59,142.58,0.82]
[1763291452199,8.32,142.59,142.58,0.82]
[1763291452518,8.32,142.61,142.58,0.82]
[1763291452683,22.6512,142.64,142.58,0.82]
[1763291452994,8.32,142.63,142.58,0.82]
[1763291453778,8.32,142.63,142.58,0.1]
[1763291453779,10.43882769,142.62,142.58,0.1]
[1763291454523,8.97,142.61,142.58,0.1]
[1763291454684,22.6512,142.59,142.58,0.1]
[1763291455010,30.9712,142.59,142.58,0.1]
[1763291456082,41.41002769,142.59,142.58,0.1]
[1763291456817,30.9712,142.59,142.58,0.1]
[1763291456982,10.43882769,142.64,142.58,0.82]
[1763291457315,43.58931237,142.63,142.58,0.82]
[1763291457522,44.23931237,142.63,142.58,0.82]
[1763291458601,41.43002769,142.63,142.58,0.82]
[1763291459383,0.65,142.62,142.58,0.82]
[1763291459579,8.34,142.61,142.58,0.82]
[1763291459879,8.34,142.61,142.58,0.1]
[1763291460085,8.34,142.61,142.58,0.82]
[1763291461882,8.34,142.6,142.58,0.82]
[1763291462915,8.34,142.6,142.58,0.1]
[1763291463722,8.34,142.6,142.58,0.82]
[1763291464014,8.34,142.6,142.58,0.1]
[1763291464200,8.34,142.6,142.58,0.82]
[1763291465393,22.6512,142.63,142.58,0.82]
[1763291465617,8.34,142.66,142.58,0.82]
[1763291465992,30.9912,142.66,142.58,0.82]
[1763291466312,8.34,142.66,142.58,0.82]
[1763291467212,8.34,142.66,142.59,32.44002769]
[1763291467408,8.34,142.66,142.6,0.72]
[1763291467615,19.81561924,142.68,142.61,9.78882769]
[1763291467994,19.81561924,142.68,142.62,0.72]
[1763291468593,19.81561924,142.68,142.63,9.78882769]
[1763291468813,19.81561924,142.68,142.62,23.3712]
[1763291469318,19.81561924,142.68,142.63,0.72]
[1763291470121,28.15561924,142.68,142.63,0.72]
[1763291470323,28.80561924,142.68,142.63,0.72]
[1763291470700,28.15561924,142.68,142.63,0.72]
[1763291470906,19.81561924,142.68,142.63,0.72]
[1763291472298,19.81561924,142.68,142.64,9.78882769]
[1763291472493,19.81561924,142.68,142.63,0.72]
[1763291473728,28.15561924,142.68,142.63,0.72]
[1763291473933,28.85561924,142.68,142.63,0.72]
[1763291474440,0.71,142.67,142.63,0.72]
[1763291474796,8.34,142.66,142.63,0.72]
[1763291477698,9.05,142.66,142.62,0.71]
[1763291478103,8.34,142.66,142.62,0.71]
[1763291478519,0.71,142.65,142.6,0.71]
[1763291479829,8.34,142.66,142.6,0.71]
[1763291480214,0.71,142.65,142.6,0.71]
[1763291482114,0.71,142.65,142.58,23.4612]
[1763291483034,0.71,142.65,142.59,0.71]
[1763291484016,8.34,142.66,142.59,0.71]
[1763291484209,9.05,142.66,142.59,0.71]
[1763291487026,0.71,142.65,142.59,0.71]
[1763291488216,9.78882769,142.64,142.58,0.1]
[1763291488423,8.34,142.63,142.58,0.1]
[1763291488822,0.71,142.62,142.58,0.81]
[1763291490142,104.2,142.64,142.58,23.4612]
[1763291490310,8.34,142.62,142.58,0.81]
[1763291490511,112.54,142.64,142.59,0.71]
[1763291490939,113.25,142.64,142.59,0.71]
[1763291492617,0.71,142.63,142.58,0.1]
[1763291493116,0.71,142.63,142.58,0.81]
[1763291493423,31.7012,142.64,142.58,0.81]
[1763291493807,30.9912,142.64,142.58,0.81]
[1763291494013,0.71,142.63,142.58,0.1]
[1763291495215,9.78882769,142.62,142.58,0.1]
[1763291495435,8.34,142.61,142.58,0.1]
[1763291495620,9.05,142.61,142.58,0.1]
[1763291495820,0.71,142.6,142.58,0.1]
[1763291496213,9.78882769,142.59,142.58,0.1]
[1763291496618,0.71,142.59,142.58,0.1]
[1763291500113,9.05,142.59,142.58,0.1]
[1763291500538,0.71,142.59,142.58,0.1]
[1763291500722,8.34,142.59,142.58,0.1]
[1763291501037,9.05,142.59,142.58,0.1]
[1763291501334,8.34,142.59,142.58,0.1]
[1763291501512,9.05,142.59,142.58,0.1]
[1763291502636,18.83882769,142.59,142.58,0.1]
[1763291515838,10.49882769,142.59,142.58,0.1]
[1763291516151,18.83882769,142.59,142.58,0.1]
[1763291516741,41.49002769,142.59,142.58,0.1]
[1763291520556,30.9912,142.59,142.58,0.1]
[1763291521346,41.44002769,142.59,142.58,0.1]
[1763291521547,30.9912,142.59,142.58,0.76]
[1763291521743,104.2,142.64,142.58,0.76]
[1763291521967,18.12882769,142.63,142.58,0.76]
[1763291522262,22.6512,142.62,142.58,0.76]
[1763291522663,8.34,142.61,142.58,0.76]
[1763291522842,9.0,142.61,142.58,0.1]
[1763291523247,8.34,142.61,142.58,0.76]
[1763291529377,33.10002769,142.65,142.58,0.76]
[1763291529572,8.34,142.64,142.58,0.76]
[1763291533780,0.66,142.63,142.58,0.76]
[1763291534070,9.78882769,142.62,142.58,0.1]
[1763291534259,8.34,142.61,142.58,0.1]
[1763291534454,9.0,142.61,142.58,0.1]
[1763291534664,0.66,142.6,142.58,0.1]
[1763291535966,30.9912,142.61,142.58,0.1]
[1763291536156,0.72,142.6,142.58,0.1]
[1763291536362,8.34,142.59,142.58,0.1]
[1763291536776,9.06,142.59,142.58,0.1]
[1763291537450,41.50002769,142.59,142.58,0.1]
[1763291539683,46.16986535,142.59,142.58,0.1]
[1763291541073,23.51866535,142.59,142.58,0.1]
[1763291544494,26.32952933,142.59,142.58,0.1]
[1763291545183,48.98072933,142.59,142.58,0.1]
[1763291545477,26.32952933,142.59,142.58,0.1]
[1763291549374,21.65969167,142.59,142.58,0.1]
[1763291549974,26.32522387,142.59,142.58,0.1]
[1763291550190,21.65969167,142.59,142.58,0.1]
[1763291550392,26.32515926,142.59,142.58,0.1]
[1763291550596,21.65969167,142.59,142.58,0.1]
[1763291552290,26.32515013,142.59,142.58,0.1]
[1763291552773,21.65969167,142.59,142.58,0.1]
[1763291553587,13.31969167,142.59,142.58,0.1]
[1763291553778,21.65969167,142.59,142.58,0.1]
[1763291559111,20.93969167,142.59,142.58,0.1]
[1763291560176,20.93969167,142.59,142.58,0.79]
[1763291560502,30.9912,142.59,142.58,0.79]
[1763291561305,8.34,142.59,142.58,0.1]
[1763291561498,30.9912,142.59,142.58,0.79]
[1763291562203,8.34,142.59,142.58,0.79]
[1763291566607,8.34,142.61,142.58,0.79]
[1763291568329,8.34,142.61,142.58,0.1]
[1763291568542,8.34,142.61,142.59,0.68]
[1763291571307,8.34,142.61,142.58,0.1]
[1763291571503,8.34,142.61,142.58,0.78]
[1763291579919,0.67,142.6,142.58,0.1]
[1763291580123,8.32,142.59,142.58,0.1]
[1763291580848,8.99,142.59,142.58,0.1]
[1763291582225,8.32,142.59,142.58,0.1]
[1763291583520,8.99,142.59,142.58,0.1]
[1763291584954,21.07259509,142.64,142.58,0.78]
[1763291585132,8.34,142.63,142.58,0.78]
[1763291585654,10.45882769,142.62,142.58,0.1]
[1763291585953,8.34,142.61,142.58,0.1]
[1763291586122,8.34,142.61,142.59,0.68]
[1763291586849,9.01,142.61,142.58,0.1]
[1763291587054,8.34,142.61,142.59,0.68]
[1763291587246,8.34,142.61,142.58,0.1]
[1763291587432,0.67,142.6,142.58,0.1]
[1763291587748,8.34,142.59,142.58,0.1]
[1763291588338,9.01,142.59,142.58,0.1]
[1763291590451,18.79882769,142.59,142.58,0.1]
[1763291593497,10.45882769,142.59,142.58,0.1]
[1763291593630,18.79882769,142.59,142.58,0.1]
[1763291594458,41.45002769,142.59,142.58,0.1]
[1763291596455,33.11002769,142.59,142.58,0.1]
[1763291596654,41.45002769,142.59,142.58,0.1]
[1763291596839,30.9912,142.59,142.58,0.1]
[1763291598960,31.7112,142.59,142.58,0.1]
[1763291599153,30.9912,142.59,142.58,0.1]
[1763291599364,31.7112,142.59,142.58,0.1]
[1763291600865,41.50002769,142.59,142.58,0.1]
[1763291609664,30.9912,142.59,142.58,0.1]
[1763291610334,22.6512,142.6,142.58,0.76]
[1763291610538,8.34,142.59,142.58,0.76]
[1763291620076,4.68800201,142.62,142.58,0.76]
[1763291620282,8.32,142.63,142.58,0.76]
[1763291626164,20.07694481,142.64,142.58,0.76]
[1763291628158,20.07694481,142.64,142.59,9.78882769]
[1763291628667,20.07694481,142.64,142.61,9.78882769]
[1763291629055,20.07694481,142.64,142.62,0.68]
[1763291639076,0.72,142.63,142.58,0.1]
[1763291639273,9.04,142.63,142.58,0.1]
[1763291639686,0.72,142.62,142.58,0.1]
[1763291639888,8.32,142.61,142.58,0.78]
[1763291640088,8.32,142.61,142.58,0.1]
[1763291640299,9.04,142.61,142.58,0.78]
[1763291641866,9.04,142.61,142.58,0.1]
[1763291642791,0.72,142.6,142.58,0.1]
[1763291643192,8.32,142.61,142.58,0.1]
[1763291643381,9.04,142.61,142.58,0.1]
[1763291643981,22.6512,142.59,142.58,0.1]
[1763291644498,23.3712,142.59,142.58,0.1]
[1763291645381,33.16002769,142.59,142.58,0.1]
[1763291645884,41.48002769,142.59,142.58,0.1]
[1763291647368,41.48002769,142.59,142.53,0.1]
[1763291647575,22.6512,142.54,142.53,0.1]
[1763291647877,40.78002769,142.54,142.53,0.1]
[1763291648098,41.50002769,142.54,142.53,0.1]
[1763291651197,31.7112,142.54,142.53,0.1]
[1763291651976,8.34,142.54,142.53,0.1]
[1763291652782,9.06,142.54,142.53,0.1]
[1763291654085,18.84882769,142.54,142.53,0.1]
[1763291654281,41.50002769,142.54,142.53,0.1]
[1763291658005,18.84882769,142.54,142.53,0.1]
[1763291660818,21.66087732,142.54,142.53,0.1]
[1763291665732,21.66087732,142.54,142.44,0.1]
[1763291665733,32.44002769,142.5,142.44,0.1]
[1763291665936,22.6512,142.44,142.34,2.81204963]
[1763291666097,9.78882769,142.39,142.34,2.81204963]
[1763291666301,22.6512,142.35,142.3,0.71]
[1763291666606,22.6512,142.31,142.28,0.71]
[1763291666810,8.36,142.3,142.19,0.71]
[1763291667009,8.36,142.3,142.2,0.71]
[1763291668519,22.6512,142.27,142.21,9.78882769]
[1763291668703,8.36,142.26,142.22,0.71]
[1763291669425,2.81501812,142.34,142.12,31.36008112]
[1763291669426,22.6512,142.32,142.23,0.71]
[1763291669649,5.82345442,142.27,142.23,0.71]
[1763291669934,12.99241157,142.26,142.23,0.71]
[1763291670108,4.59241157,142.25,142.23,0.71]
[1763291670307,8.4,142.26,142.23,0.71]
[1763291670508,4.58487565,142.25,142.23,0.71]
[1763291670726,4.58474099,142.24,142.23,0.71]
[1763291670925,4.58492469,142.25,142.23,0.71]
[1763291671127,5.82345442,142.31,142.24,9.78882769]
[1763291671323,12.97987008,142.3,142.24,9.78882769]
[1763291671509,4.57987008,142.29,142.25,0.71]
[1763291671712,5.82345442,142.32,142.25,0.71]
[1763291671912,12.98059825,142.31,142.25,0.71]
[1763291672218,4.58059825,142.3,142.25,0.71]
[1763291672533,4.58059825,142.29,142.25,0.71]
[1763291672832,4.5766781,142.28,142.26,9.78882769]
[1763291673029,8.4,142.31,142.24,9.78882769]
[1763291673236,4.57675079,142.3,142.24,9.78882769]
[1763291673427,4.57675079,142.29,142.23,9.78882769]
[1763291673621,4.57675079,142.28,142.23,9.78882769]
[1763291673941,8.4,142.31,142.23,9.78882769]
[1763291674237,4.57370153,142.3,142.23,9.78882769]
[1763291674538,4.57370153,142.29,142.23,11.78882768]
[1763291674710,14.22345442,142.32,142.23,11.78882768]
[1763291674912,4.5716671,142.31,142.24,0.71]
[1763291675130,4.5716671,142.3,142.24,0.71]
[1763291675336,4.5716671,142.29,142.24,0.71]
[1763291675639,4.5716671,142.28,142.24,0.71]
[1763291675940,5.82345442,142.31,142.24,0.71]
[1763291676117,4.57003974,142.3,142.24,0.71]
[1763291676318,4.57003974,142.29,142.24,0.71]
[1763291676519,4.57003974,142.28,142.24,0.71]
[1763291676835,4.57003974,142.27,142.24,0.71]
[1763291677037,12.97003974,142.26,142.24,0.71]
[1763291677340,4.57003974,142.25,142.24,0.71]
[1763291677524,4.57003974,142.25,142.22,0.71]
[1763291677731,4.57003974,142.24,142.23,0.71]
[1763291678327,4.57003974,142.24,142.22,0.71]
[1763291678538,4.57003974,142.23,142.22,0.71]
[1763291681137,4.57003974,142.23,142.16,9.78882769]
[1763291681340,5.82345442,142.21,142.14,103.88690969]
[1763291681528,10.39349416,142.2,142.15,9.78882769]
[1763291681728,4.57003974,142.19,142.15,9.78882769]
[1763291681954,4.57003974,142.18,142.14,102.518082]
[1763291682127,4.57003974,142.17,142.14,102.518082]
[1763291682468,5.82345442,142.2,142.14,102.518082]
[1763291682752,4.55974565,142.19,142.15,9.78882769]
[1763291682929,4.55974565,142.18,142.15,9.78882769]
[1763291683129,4.55974565,142.17,142.15,9.78882769]
[1763291683337,5.82345442,142.21,142.16,0.41]
[1763291683542,10.38372754,142.2,142.16,0.41]
[1763291683750,4.56027312,142.19,142.16,0.41]
[1763291683956,5.82345442,142.2,142.16,0.41]
[1763291683957,4.56027312,142.18,142.16,0.41]
[1763291684266,4.56027312,142.17,142.16,0.41]
[1763291684836,4.56027312,142.17,142.14,94.508082]
[1763291685038,5.24027312,142.16,142.14,94.098082]
[1763291685230,12.98027312,142.15,142.14,94.098082]
[1763291685549,19.35429723,142.15,142.14,94.098082]
[1763291685959,13.66027312,142.15,142.14,94.098082]
[1763291686274,19.3541982,142.15,142.14,94.098082]
[1763291687267,18.6741982,142.15,142.14,94.098082]
[1763291687566,12.98027312,142.15,142.14,94.098082]
[1763291688237,18.6741982,142.15,142.14,94.098082]
[1763291688443,13.66027312,142.15,142.14,82.20663652]
[1763291689560,10.9288186,142.15,142.14,82.20663652]
[1763291689734,4.56027312,142.15,142.14,82.20663652]
[1763291689941,12.98027312,142.15,142.14,82.20663652]
[1763291690338,12.98027312,142.15,142.14,82.61663652]
[1763291691463,4.56027312,142.15,142.14,82.61663652]
[1763291692770,4.56027312,142.15,142.14,82.20663652]
[1763291693936,5.24027312,142.15,142.14,82.20663652]
[1763291695175,4.56027312,142.15,142.14,82.61663652]
[1763291695353,12.98027312,142.15,142.14,82.61663652]
[1763291695866,12.98027312,142.15,142.14,82.20663652]
[1763291696060,12.98027312,142.15,142.14,82.61663652]
[1763291696364,12.98027312,142.15,142.14,82.20663652]
[1763291697845,4.56027312,142.15,142.14,82.61663652]
[1763291699773,8.42,142.18,142.14,82.20663652]
[1763291700072,9.1,142.18,142.14,82.20663652]
[1763291700253,0.68,142.17,142.14,82.20663652]
[1763291700571,8.42,142.16,142.14,82.20663652]
[1763291700955,0.68,142.15,142.14,82.20663652]
[1763291701159,22.6512,142.19,142.14,82.61663652]
[1763291701160,0.68,142.19,142.14,82.61663652]
[1763291701361,8.42,142.18,142.14,82.61663652]
[1763291702153,23.3312,142.22,142.15,0.41]
[1763291702353,8.42,142.21,142.15,0.41]
[1763291702549,23.3312,142.22,142.15,0.41]
[1763291702550,0.68,142.22,142.15,0.41]
[1763291702789,8.42,142.21,142.15,0.41]
[1763291702994,0.68,142.28,142.16,9.78882769]
[1763291703158,1.02,142.27,142.2,9.78882769]
[1763291703352,8.42,142.28,142.2,9.78882769]
[1763291703574,8.42,142.28,142.21,0.41]
[1763291704261,0.68,142.27,142.21,0.41]
[1763291706164,9.1,142.28,142.21,0.41]
[1763291706654,8.42,142.28,142.21,0.41]
[1763291707068,8.42,142.28,142.22,9.78882769]
[1763291707685,8.42,142.28,142.23,0.41]
[1763291707892,0.2,142.3,142.23,0.41]
[1763291708257,0.2,142.3,142.24,34.44002768]
[1763291708483,0.2,142.3,142.24,32.44002769]
[1763291708654,0.2,142.3,142.25,0.41]
[1763291709057,0.2,142.3,142.26,9.78882769]
[1763291709464,0.2,142.3,142.27,0.41]
[1763291709984,0.2,142.3,142.28,9.78882769]
[1763291710386,0.2,142.3,142.29,10.19882769]
[1763291710689,0.2,142.3,142.29,18.61882769]
[1763291711061,0.2,142.3,142.29,10.19882769]
[1763291711392,18.81562949,142.35,142.33,9.78882769]
[1763291711757,18.81562949,142.35,142.34,10.19882769]
[1763291712390,0.2,142.43,142.35,32.44002769]
[1763291712573,0.2,142.43,142.35,32.85002769]
[1763291712782,0.2,142.43,142.36,0.41]
[1763291713178,0.2,142.43,142.37,9.78882769]
[1763291713689,0.2,142.43,142.39,9.78882769]
[1763291714204,0.2,142.43,142.4,0.41]
[1763291715085,0.2,142.43,142.41,9.78882769]
[1763291715598,0.2,142.43,142.42,10.19882769]
[1763291717991,0.2,142.43,142.42,12.19882768]
[1763291718197,0.69,142.54,142.43,1.99999999]
[1763291718406,0.69,142.54,142.46,9.78882769]
[1763291718803,0.69,142.54,142.42,22.6512]
[1763291719414,0.69,142.54,142.42,32.44002769]
[1763291720223,0.69,142.54,142.44,9.78882769]
[1763291720494,0.69,142.54,142.37,1.99999999]
[1763291720698,22.6512,142.5,142.39,9.78882769]
[1763291720924,22.6512,142.5,142.39,32.44002769]
[1763291721122,0.69,142.49,142.39,32.85002769]
[1763291721631,0.69,142.49,142.39,10.19882769]
[1763291722005,0.69,142.49,142.39,32.85002769]
[1763291722200,0.69,142.49,142.39,10.19882769]
[1763291722406,0.69,142.49,142.41,9.78882769]
[1763291723314,0.69,142.49,142.4,8.42]
[1763291726108,0.69,142.49,142.41,9.78882769]
[1763291727144,0.69,142.49,142.4,8.42]
[1763291727835,8.4,142.48,142.35,0.41]
[1763291728047,8.4,142.48,142.36,10.19882769]
[1763291728247,0.69,142.47,142.38,9.78882769]
[1763291728602,0.69,142.47,142.38,10.19882769]
[1763291728930,0.69,142.5,142.43,22.6512]
[1763291730112,22.6512,142.49,142.38,9.78882769]